bitfinex/quotes_BTCUSD_20250222
["timestamp","ask_amount","ask_price","bid_price","bid_amount"]
[1740262154310,0.0078504,96820.0,96819.0,0.01314567]
[1740262155004,0.0078504,96820.0,96812.0,0.0017008]
[1740262155208,0.18739509,96819.0,96812.0,0.0017008]
[1740262155860,0.18584569,96819.0,96812.0,0.0017008]
[1740262156810,0.18584569,96819.0,96812.0,0.1566388]
[1740262157034,0.18984569,96819.0,96812.0,0.1566388]
[1740262157719,0.19284569,96819.0,96812.0,0.1566388]
[1740262158037,0.19284569,96819.0,96812.0,0.0017008]
[1740262158241,0.19284569,96819.0,96813.0,0.16808931]
[1740262159387,0.18884569,96819.0,96813.0,0.16808931]
[1740262159594,0.18984569,96819.0,96813.0,0.16808931]
[1740262160174,0.18984569,96819.0,96813.0,0.01315231]
[1740262161138,0.18984569,96819.0,96813.0,0.16808931]
[1740262161678,0.19284569,96819.0,96813.0,0.16808931]
[1740262162240,0.19284569,96819.0,96813.0,0.01315231]
[1740262163414,0.10964569,96819.0,96813.0,0.01315231]
[1740262163774,0.10964569,96819.0,96813.0,0.16808931]
[1740262164723,0.10964569,96819.0,96813.0,0.01315231]
[1740262165299,0.10964569,96819.0,96813.0,0.16808831]
[1740262165953,0.11049619,96819.0,96813.0,0.16808831]
[1740262166858,0.11049619,96819.0,96813.0,0.16808931]
[1740262167081,0.11049619,96819.0,96813.0,0.01315231]
[1740262169994,0.11049619,96819.0,96813.0,0.16808931]
[1740262170905,0.11049619,96819.0,96813.0,0.01315231]
[1740262172635,0.11049619,96819.0,96813.0,0.16808931]
[1740262175631,0.11049619,96819.0,96813.0,0.01315231]
[1740262180436,0.11049619,96819.0,96813.0,0.16808831]
[1740262180731,0.11049619,96819.0,96813.0,0.01315231]
[1740262182192,0.11049619,96819.0,96813.0,0.16808931]
[1740262182831,0.11049619,96819.0,96813.0,0.01315231]
[1740262183692,0.11049619,96819.0,96813.0,0.16808931]
[1740262183807,0.11049619,96819.0,96813.0,0.01315231]
[1740262184443,0.11049619,96819.0,96812.0,0.0017008]
[1740262184667,0.11049619,96819.0,96814.0,0.01315121]
[1740262184877,0.11049619,96819.0,96813.0,0.01315231]
[1740262185036,0.11049619,96819.0,96815.0,0.0131501]
[1740262185229,0.11049619,96819.0,96814.0,0.01315121]
[1740262185433,0.10349619,96819.0,96816.0,0.01314899]
[1740262185788,0.10349619,96819.0,96817.0,0.01314789]
[1740262185985,0.10649619,96819.0,96817.0,0.01314789]
[1740262186282,0.10649619,96819.0,96812.0,0.0017008]
[1740262186485,0.10649619,96819.0,96818.0,0.01314678]
[1740262186661,0.10349619,96819.0,96812.0,0.0017008]
[1740262186858,0.10749619,96819.0,96812.0,0.0017008]
[1740262187062,0.10749619,96819.0,96813.0,0.01315231]
[1740262187466,0.11049619,96819.0,96813.0,0.01315231]
[1740262187842,0.10649619,96819.0,96813.0,0.01315231]
[1740262188244,0.11049619,96819.0,96813.0,0.01315231]
[1740262188667,0.10749619,96819.0,96813.0,0.01315231]
[1740262189091,0.11049619,96819.0,96813.0,0.01315231]
[1740262189295,0.10749619,96819.0,96813.0,0.01315231]
[1740262189816,0.11049619,96819.0,96813.0,0.01315231]
[1740262191818,0.03837719,96819.0,96813.0,0.01315231]
[1740262212953,0.03837719,96819.0,96813.0,0.01485291]
[1740262215772,0.154936,96814.0,96813.0,0.01485291]
[1740262215947,0.25913124,96814.0,96813.0,0.0017006]
[1740262216199,0.81398169,96814.0,96813.0,0.0017006]
[1740262216635,0.82852254,96814.0,96813.0,0.0017006]
[1740262216812,0.87382254,96814.0,96813.0,0.0017006]
[1740262218408,0.88482254,96814.0,96813.0,0.0027006]
[1740262234709,0.88281454,96814.0,96813.0,0.0027006]
[1740262236513,0.59334569,96814.0,96813.0,0.0027006]
[1740262256053,0.59334569,96814.0,96813.0,0.02294807]
[1740262260252,0.59419599,96814.0,96813.0,0.02294807]
[1740262266451,0.74913199,96814.0,96813.0,0.02294807]
[1740262270817,0.74913199,96814.0,96813.0,0.0027006]
[1740262317789,0.59419599,96814.0,96813.0,0.0027006]
[1740262317992,0.74913199,96814.0,96813.0,0.0027006]
[1740262318189,0.59419599,96814.0,96813.0,0.0027006]
[1740262318395,0.74913199,96814.0,96813.0,0.0027006]
[1740262318814,0.59419599,96814.0,96813.0,0.0027006]
[1740262324703,0.74913199,96814.0,96813.0,0.0027006]
[1740262325122,0.59419599,96814.0,96813.0,0.0027006]
[1740262332072,0.74913199,96814.0,96813.0,0.0027006]
[1740262334129,0.59419599,96814.0,96813.0,0.0027006]
[1740262338395,0.74913199,96814.0,96813.0,0.0027006]
[1740262340279,0.59419599,96814.0,96813.0,0.0027006]
[1740262341222,0.74913199,96814.0,96813.0,0.0027006]
[1740262409095,0.76367284,96814.0,96813.0,0.0027006]
[1740262409299,0.84217284,96814.0,96813.0,0.0027006]
[1740262409705,0.87274477,96814.0,96813.0,0.0027006]
[1740262410292,0.86774477,96814.0,96813.0,0.0027006]
[1740262410811,0.87474477,96814.0,96813.0,0.0037006]
[1740262411024,0.86874477,96814.0,96813.0,0.0027006]
[1740262411984,0.87474477,96814.0,96813.0,0.0027006]
[1740262412339,0.86874477,96814.0,96813.0,0.0027006]
[1740262413753,0.87574477,96814.0,96813.0,0.0027006]
[1740262415736,0.84517284,96814.0,96813.0,0.0027006]
[1740262429588,0.76667284,96814.0,96813.0,0.0027006]
[1740262435238,0.76667284,96814.0,96813.0,0.02308641]
[1740262440326,0.76667284,96814.0,96813.0,0.0027006]
[1740262442338,0.79721785,96814.0,96813.0,0.0027006]
[1740262445780,0.88031785,96814.0,96813.0,0.0027006]
[1740262445980,0.92851785,96814.0,96813.0,0.0027006]
[1740262447019,0.92151785,96814.0,96813.0,0.0017006]
[1740262447426,0.88031785,96814.0,96813.0,0.0027006]
[1740262447862,0.87331785,96814.0,96813.0,0.0027006]
[1740262448026,0.79757785,96814.0,96813.0,0.0027006]
[1740262448205,0.80457785,96814.0,96813.0,0.0027006]
[1740262448925,0.79021785,96814.0,96813.0,0.0027006]
[1740262449129,0.79721785,96814.0,96813.0,0.0027006]
[1740262472771,0.76667284,96814.0,96813.0,0.0027006]
[1740262473209,0.79723591,96814.0,96813.0,0.0027006]
[1740262473731,0.79723595,96814.0,96813.0,0.0027006]
[1740262474799,0.76667284,96814.0,96813.0,0.0027006]
[1740262478855,0.76667284,96814.0,96813.0,0.02380222]
[1740262481028,0.61173684,96814.0,96813.0,0.02380222]
[1740262481274,0.76667284,96814.0,96813.0,0.02380222]
[1740262496383,0.75213199,96814.0,96813.0,0.02380222]
[1740262501471,0.75213199,96814.0,96813.0,0.0027006]
[1740262507678,0.59719599,96814.0,96813.0,0.0027006]
[1740262508095,0.75213199,96814.0,96813.0,0.0027006]
[1740262509264,1.52913199,96814.0,96813.0,0.0027006]
[1740262512768,1.37419599,96814.0,96813.0,0.0027006]
[1740262512948,1.22419599,96814.0,96813.0,0.0027006]
[1740262513177,1.37419599,96814.0,96813.0,0.0027006]
[1740262516850,1.52913199,96814.0,96813.0,0.0027006]
[1740262518655,1.37419599,96814.0,96813.0,0.0027006]
[1740262519843,1.52913199,96814.0,96813.0,0.0027006]
[1740262522585,1.37419599,96814.0,96813.0,0.0027006]
[1740262523623,1.52913199,96814.0,96813.0,0.0027006]
[1740262539436,1.37419599,96814.0,96813.0,0.0027006]
[1740262539648,1.52913199,96814.0,96813.0,0.0027006]
[1740262549021,1.52913199,96814.0,96813.0,0.00261002]
[1740262553027,1.61203199,96814.0,96813.0,0.00261002]
[1740262563883,1.61039174,96814.0,96813.0,0.00261002]
[1740262570581,1.62493259,96814.0,96813.0,0.00261002]
[1740262570789,1.65547224,96814.0,96813.0,0.00261002]
[1740262571184,1.64847224,96814.0,96813.0,0.00261002]
[1740262571392,1.66147224,96814.0,96813.0,0.00161002]
[1740262571706,1.66847224,96814.0,96813.0,0.00161002]
[1740262572729,1.67547224,96814.0,96813.0,0.00161002]
[1740262575620,1.66847224,96814.0,96813.0,0.00161002]
[1740262575956,1.66147224,96814.0,96813.0,0.00161002]
[1740262576343,1.67547224,96814.0,96813.0,0.00161002]
[1740262580289,1.65262236,96814.0,96813.0,0.00161002]
[1740262580468,1.68313549,96814.0,96813.0,0.00161002]
[1740262581194,1.65262236,96814.0,96813.0,0.00161002]
[1740262581494,1.68313536,96814.0,96813.0,0.00161002]
[1740262595059,1.69049536,96814.0,96813.0,0.00161002]
[1740262602621,1.69049536,96814.0,96813.0,0.05161002]
[1740262617050,1.68313536,96814.0,96813.0,0.05161002]
[1740262617267,1.69049536,96814.0,96813.0,0.05161002]
[1740262617453,1.60759536,96814.0,96813.0,0.05161002]
[1740262628523,1.70070761,96814.0,96813.0,0.05161002]
[1740262634444,1.69334761,96814.0,96813.0,0.05161002]
[1740262634646,1.70070761,96814.0,96813.0,0.05161002]
[1740262635738,1.60759536,96814.0,96813.0,0.05161002]
[1740262640633,1.57708236,96814.0,96813.0,0.05161002]
[1740262642356,1.57708236,96814.0,96813.0,0.00161002]
[1740262664518,1.60763657,96814.0,96813.0,0.00161002]
[1740262702622,1.5725868,96814.0,96813.0,0.00161002]
[1740262702826,1.52749174,96814.0,96813.0,0.00161002]
[1740262727802,1.54203259,96814.0,96813.0,0.00161002]
[1740262776741,1.62513259,96814.0,96813.0,0.00161002]
[1740262776948,1.65569479,96814.0,96813.0,0.00161002]
[1740262778190,1.67569479,96814.0,96813.0,0.00161002]
[1740262786012,1.68351546,96814.0,96813.0,0.00161002]
[1740262792483,1.66031326,96814.0,96813.0,0.00161002]
[1740262793271,1.69084704,96814.0,96813.0,0.00161002]
[1740262794091,1.66031326,96814.0,96813.0,0.00161002]
[1740262794594,1.69084691,96814.0,96813.0,0.00161002]
[1740262795280,1.54203259,96814.0,96813.0,0.00161002]
[1740262837744,1.54203259,96814.0,96813.0,0.00061002]
[1740262840985,1.68953259,96814.0,96813.0,0.00061002]
[1740262841133,1.72010264,96814.0,96813.0,0.00061002]
[1740262846311,1.68953259,96814.0,96813.0,0.00061002]
[1740262862371,1.64143259,96814.0,96813.0,0.00061002]
[1740262870985,1.56203259,96814.0,96813.0,0.00061002]
[1740262873310,1.59258012,96814.0,96813.0,0.00061002]
[1740262877949,1.56203259,96814.0,96813.0,0.00061002]
[1740262909245,0.18454085,96813.0,96798.0,0.08275876]
[1740262909598,0.154959,96800.0,96798.0,0.08275876]
[1740262909796,0.11718654,96799.0,96798.0,0.08275876]
[1740262910819,0.27214654,96799.0,96798.0,0.08275876]
[1740262911352,0.27914654,96799.0,96798.0,0.08275876]
[1740262911725,0.28614654,96799.0,96798.0,0.08275876]
[1740262913300,0.61584654,96799.0,96798.0,0.08275876]
[1740262914246,0.61584654,96799.0,96798.0,0.08445956]
[1740262925747,0.61669724,96799.0,96798.0,0.08445956]
[1740262951940,0.61669724,96799.0,96798.0,0.0017008]
[1740263030815,0.46173724,96799.0,96798.0,0.0017008]
[1740263031609,0.61669724,96799.0,96798.0,0.0017008]
[1740263047844,0.46173724,96799.0,96798.0,0.0017008]
[1740263048058,0.61669724,96799.0,96798.0,0.0017008]
[1740263054382,0.61669724,96799.0,96798.0,0.02228154]
[1740263059547,0.61669724,96799.0,96798.0,0.0017008]
[1740263062050,0.69909724,96799.0,96798.0,0.0017008]
[1740263090247,0.60215639,96799.0,96798.0,0.0017008]
[1740263100740,0.84339724,96799.0,96798.0,0.0017008]
[1740263144825,0.84339724,96799.0,96798.0,0.02277585]
[1740263154579,0.84339724,96799.0,96798.0,0.0017008]
[1740263208654,0.83639724,96799.0,96798.0,0.0017008]
[1740263209001,0.82939724,96799.0,96798.0,0.0017008]
[1740263209206,0.84339724,96799.0,96798.0,0.0017008]
[1740263209558,0.83639724,96799.0,96798.0,0.0017008]
[1740263209768,0.84339724,96799.0,96798.0,0.0017008]
[1740263210171,0.83639724,96799.0,96798.0,0.0017008]
[1740263210389,0.82939724,96799.0,96798.0,0.0017008]
[1740263210762,0.84339724,96799.0,96798.0,0.0017008]
[1740263210884,0.83639724,96799.0,96798.0,0.0017008]
[1740263212097,0.84339724,96799.0,96798.0,0.0017008]
[1740263229862,0.84339724,96799.0,96798.0,0.02210488]
[1740263241712,0.87397294,96799.0,96798.0,0.02210488]
[1740263242215,0.87397294,96799.0,96798.0,0.0017008]
[1740263257831,0.79727294,96799.0,96798.0,0.0017008]
[1740263275136,0.87317294,96799.0,96798.0,0.0017008]
[1740263292863,0.84259724,96799.0,96798.0,0.0017008]
[1740263293152,0.87318129,96799.0,96798.0,0.0017008]
[1740263301020,0.79728129,96799.0,96798.0,0.0017008]
[1740263341489,0.76669724,96799.0,96798.0,0.0017008]
[1740263370202,0.79728187,96799.0,96798.0,0.0017008]
[1740263389740,0.76669724,96799.0,96798.0,0.0017008]
[1740263589744,0.79727577,96799.0,96798.0,0.0017008]
[1740263595343,0.76669724,96799.0,96798.0,0.0017008]
[1740263595521,0.7972711,96799.0,96798.0,0.0017008]
[1740263618903,0.76669724,96799.0,96798.0,0.0017008]
[1740263626941,0.7972752,96799.0,96798.0,0.0017008]
[1740263658046,0.8749752,96799.0,96798.0,0.0017008]
[1740263698171,0.8679752,96799.0,96798.0,0.0017008]
[1740263698795,0.8749752,96799.0,96798.0,0.0017008]
[1740263716768,0.8949752,96799.0,96798.0,0.0017008]
[1740263717371,0.8879752,96799.0,96798.0,0.0017008]
[1740263717576,0.8883352,96799.0,96798.0,0.0017008]
[1740263717777,0.9023352,96799.0,96798.0,0.0017008]
[1740263718136,0.8953352,96799.0,96798.0,0.0017008]
[1740263718562,0.9023352,96799.0,96798.0,0.0017008]
[1740263719439,0.9093352,96799.0,96798.0,0.0017008]
[1740263726148,1.00238247,96799.0,96798.0,0.0017008]
[1740263734195,0.9093352,96799.0,96798.0,0.0017008]
[1740263739507,0.9019752,96799.0,96798.0,0.0017008]
[1740263740227,0.90196271,96799.0,96798.0,0.0017008]
[1740263740464,0.87139724,96799.0,96798.0,0.0017008]
[1740263740690,0.90196157,96799.0,96798.0,0.0017008]
[1740263757823,0.87139724,96799.0,96798.0,0.0017008]
[1740263757988,0.90197172,96799.0,96798.0,0.0017008]
[1740263758650,0.90933172,96799.0,96798.0,0.0017008]
[1740263775583,0.57963172,96799.0,96798.0,0.0017008]
[1740263807766,0.67269737,96799.0,96798.0,0.0017008]
[1740263817519,0.57963172,96799.0,96798.0,0.0017008]
[1740263840278,0.90933172,96799.0,96798.0,0.0017008]
[1740263852065,1.00239737,96799.0,96798.0,0.0017008]
[1740263882805,0.90933172,96799.0,96798.0,0.0017008]
[1740263903662,0.90197172,96799.0,96798.0,0.0017008]
[1740263903883,0.90929172,96799.0,96798.0,0.0017008]
[1740263905481,0.90197172,96799.0,96798.0,0.0017008]
[1740263905680,0.90929172,96799.0,96798.0,0.0017008]
[1740263914555,0.90197172,96799.0,96798.0,0.0017008]
[1740263914757,0.87139724,96799.0,96798.0,0.0017008]
[1740263926072,0.90194666,96799.0,96798.0,0.0017008]
[1740263927963,0.87139724,96799.0,96798.0,0.0017008]
[1740263949542,0.90195884,96799.0,96798.0,0.0017008]
[1740263995922,0.82425884,96799.0,96798.0,0.0017008]
[1740263996122,0.83157884,96799.0,96798.0,0.0017008]
[1740263996505,0.82425884,96799.0,96798.0,0.0017008]
[1740263996708,0.83157884,96799.0,96798.0,0.0017008]
[1740263998747,0.82425884,96799.0,96798.0,0.0017008]
[1740264000986,0.90867884,96799.0,96798.0,0.0017008]
[1740264003913,0.90871884,96799.0,96798.0,0.0017008]
[1740264032375,0.90871884,96799.0,96798.0,8e-07]
[1740264032590,0.95791884,96799.0,96798.0,8e-07]
[1740264032896,1.04656453,96799.0,96798.0,8e-07]
[1740264033353,1.05356453,96799.0,96798.0,8e-07]
[1740264033752,0.95791884,96799.0,96798.0,8e-07]
[1740264034818,0.41630585,96796.0,96795.0,3.81e-06]
[1740264035037,0.54951314,96796.0,96795.0,3.81e-06]
[1740264036149,0.55651314,96796.0,96795.0,3.81e-06]
[1740264036287,0.89321314,96796.0,96795.0,3.81e-06]
[1740264037215,0.88621314,96796.0,96795.0,3.81e-06]
[1740264037492,0.89321314,96796.0,96795.0,3.81e-06]
[1740264037827,0.88621314,96796.0,96795.0,3.81e-06]
[1740264038031,0.98885883,96796.0,96795.0,3.81e-06]
[1740264038255,0.304992,96779.0,96758.0,0.0758]
[1740264038481,0.75187854,96779.0,96778.0,0.0017444]
[1740264039439,0.76915871,96779.0,96778.0,0.0017444]
[1740264039649,0.77615871,96779.0,96778.0,0.0017444]
[1740264044384,0.76915871,96779.0,96778.0,0.0017444]
[1740264044585,0.76215871,96779.0,96778.0,0.0017444]
[1740264044786,0.76915871,96779.0,96778.0,0.0017444]
[1740264045944,0.77615871,96779.0,96778.0,0.0017444]
[1740264046414,0.76915871,96779.0,96778.0,0.0017444]
[1740264046817,0.77615871,96779.0,96778.0,0.0017444]
[1740264072543,0.80673631,96779.0,96778.0,0.0017444]
[1740264088122,0.88863631,96779.0,96778.0,0.0017444]
[1740264124127,0.73364431,96779.0,96778.0,0.0017444]
[1740264124662,0.88863631,96779.0,96778.0,0.0017444]
[1740264133506,0.90863631,96779.0,96778.0,0.0017444]
[1740264169668,0.87805871,96779.0,96778.0,0.0017444]
[1740264169893,0.90861882,96779.0,96778.0,0.0017444]
[1740264170206,0.87805871,96779.0,96778.0,0.0017444]
[1740264172731,0.88537871,96779.0,96778.0,0.0017444]
[1740264182762,0.87805871,96779.0,96778.0,0.0017444]
[1740264199078,0.85805871,96779.0,96778.0,0.0017444]
[1740264199234,0.78347871,96779.0,96778.0,0.0017444]
[1740264210021,0.77615871,96779.0,96778.0,0.0017444]
[1740264232456,0.76587854,96779.0,96778.0,0.0017444]
[1740264233235,0.7655273,96779.0,96778.0,0.0017444]
[1740264233431,0.61587854,96779.0,96778.0,0.0017444]
[1740264236154,0.46088654,96779.0,96778.0,0.0017444]
[1740264236588,0.44634569,96779.0,96778.0,0.0017444]
[1740264236788,0.44634569,96779.0,96778.0,0.0504444]
[1740264237191,0.44634569,96779.0,96778.0,0.1311444]
[1740264237384,0.44634569,96779.0,96778.0,0.14235745]
[1740264237580,0.43934569,96779.0,96778.0,0.14235745]
[1740264237779,0.43934569,96779.0,96778.0,0.1311444]
[1740264237985,0.44634569,96779.0,96778.0,0.14235745]
[1740264238407,0.43934569,96779.0,96778.0,0.14235745]
[1740264238610,0.44634569,96779.0,96778.0,0.1311444]
[1740264238826,0.44634569,96779.0,96778.0,0.14235745]
[1740264239846,0.43934569,96779.0,96778.0,0.14235745]
[1740264240059,0.43234569,96779.0,96778.0,0.14235745]
[1740264240228,0.44334569,96779.0,96778.0,0.14235745]
[1740264240441,0.43834569,96779.0,96778.0,0.1311444]
[1740264240638,0.43834569,96779.0,96778.0,0.14235745]
[1740264240891,0.44234569,96779.0,96778.0,0.14235745]
[1740264241020,0.3397,96779.0,96778.0,0.14235745]
[1740264241435,0.01,96779.0,96778.0,0.14235745]
[1740264244274,0.004,96779.0,96778.0,0.14235745]
[1740264244471,0.3297,96791.0,96778.0,0.14235745]
[1740264244675,0.10264569,96790.0,96781.0,0.1081407]
[1740264245088,0.10264569,96790.0,96782.0,0.01120925]
[1740264245289,0.10264569,96790.0,96783.0,0.00085957]
[1740264245753,0.10264569,96790.0,96784.0,0.01120735]
[1740264245940,0.10264569,96790.0,96784.0,0.0120669]
[1740264246655,0.10764569,96790.0,96785.0,0.0807]
[1740264246854,0.10264569,96790.0,96786.0,0.01120545]
[1740264247053,0.11464569,96790.0,96786.0,0.01120545]
[1740264247472,0.10964569,96790.0,96786.0,0.01120545]
[1740264247664,0.10764569,96790.0,96786.0,0.01120545]
[1740264247898,0.11464569,96790.0,96786.0,0.01120545]
[1740264249249,0.11964569,96790.0,96786.0,0.01120545]
[1740264249609,0.11264569,96790.0,96786.0,0.01120545]
[1740264249979,0.11964569,96790.0,96786.0,0.01120545]
[1740264250584,0.11964569,96790.0,96786.0,0.0109875]
[1740264252805,0.12049599,96790.0,96786.0,0.0109875]
[1740264256758,0.12049599,96790.0,96784.0,0.01017612]
[1740264256963,0.12049599,96790.0,96787.0,0.01119672]
[1740264257135,0.12049599,96790.0,96781.0,0.154988]
[1740264257343,0.12049599,96790.0,96788.0,0.01119577]
[1740264257543,0.12049599,96790.0,96784.0,0.01039694]
[1740264257738,0.12049599,96790.0,96780.0,0.29904016]
[1740264257739,0.0108503,96790.0,96780.0,0.29904016]
[1740264257904,0.0178503,96790.0,96785.0,0.16617962]
[1740264258106,0.0178503,96790.0,96785.0,0.154981]
[1740264258369,0.0178503,96790.0,96786.0,0.16617667]
[1740264258572,0.0078503,96790.0,96786.0,0.16617667]
[1740264259187,0.0128503,96790.0,96786.0,0.16617667]
[1740264259422,0.0128503,96790.0,96786.0,0.01119767]
[1740264259660,0.0178503,96790.0,96787.0,0.15583817]
[1740264259866,0.0178503,96790.0,96787.0,0.00085917]
[1740264260035,0.0108503,96790.0,96788.0,0.01119577]
[1740264260259,0.0178503,96790.0,96788.0,0.01119577]
[1740264260636,0.0178503,96790.0,96789.0,0.01119482]
[1740264260784,0.0108503,96790.0,96786.0,0.15498]
[1740264260991,0.0108503,96790.0,96787.0,0.01205589]
[1740264260992,0.0178503,96790.0,96787.0,0.01205589]
[1740264261201,0.0178503,96790.0,96789.0,0.154976]
[1740264261407,0.0108503,96790.0,96789.0,0.29637082]
[1740264261666,0.0008503,96790.0,96789.0,0.29637082]
[1740264261817,0.0078503,96790.0,96789.0,0.14139482]
[1740264262022,0.0128503,96790.0,96789.0,0.14139482]
[1740264262227,0.0078503,96790.0,96789.0,0.14139482]
[1740264262422,0.0128503,96790.0,96789.0,0.14139482]
[1740264265602,0.0128503,96790.0,96789.0,0.21397082]
[1740264268663,0.0128503,96790.0,96789.0,0.29637082]
[1740264269819,0.0078503,96790.0,96789.0,0.29637082]
[1740264270224,0.0008503,96790.0,96789.0,0.29637082]
[1740264270607,0.0028503,96790.0,96789.0,0.29637082]
[1740264270925,0.0008503,96790.0,96789.0,0.29637082]
[1740264271255,0.0018503,96790.0,96789.0,0.29637082]
[1740264271785,0.0028503,96790.0,96789.0,0.29637082]
[1740264272168,0.0018503,96790.0,96789.0,0.29637082]
[1740264272375,0.0018503,96790.0,96789.0,0.44637082]
[1740264272599,0.0018503,96790.0,96789.0,0.46637082]
[1740264273981,0.0008503,96790.0,96789.0,0.46637082]
[1740264274191,0.0008503,96790.0,96789.0,0.46937082]
[1740264277124,0.0008503,96790.0,96789.0,0.57837082]
[1740264277359,0.0008503,96790.0,96789.0,0.68101651]
[1740264300714,0.0008503,96790.0,96789.0,0.71323122]
[1740264302576,0.0008503,96790.0,96789.0,0.63083122]
[1740264310985,0.0008503,96790.0,96789.0,0.62783122]
[1740264311165,0.0028503,96790.0,96789.0,0.63083122]
[1740264315273,0.0028503,96790.0,96789.0,0.58303122]
[1740264331649,0.0028503,96790.0,96789.0,0.58716922]
[1740264340156,0.0028503,96790.0,96789.0,0.59448922]
[1740264343280,3e-07,96790.0,96789.0,0.91818922]
[1740264347445,0.0008507,96790.0,96789.0,0.93273007]
[1740264348094,7e-07,96790.0,96789.0,0.93273007]
[1740264350615,1e-07,96795.0,96794.0,0.44850885]
[1740264350820,1e-07,96795.0,96794.0,0.90706925]
[1740264351397,1e-07,96795.0,96794.0,0.94829725]
[1740264351799,0.0010001,96795.0,96794.0,0.95429725]
[1740264352340,0.0823,96813.0,96812.0,0.174939]
[1740264352540,0.0823,96813.0,96812.0,0.3097994]
[1740264352742,0.0823,96813.0,96812.0,0.3199745]
[1740264353633,0.08234886,96813.0,96812.0,0.28975979]
[1740264353817,0.08234886,96813.0,96812.0,0.29175979]
[1740264358485,0.08234886,96813.0,96812.0,0.27175979]
[1740264358688,0.08234886,96813.0,96812.0,0.29175979]
[1740264358847,0.08234886,96813.0,96812.0,0.40075979]
[1740264359254,0.08319916,96813.0,96812.0,0.40075979]
[1740264359686,0.08319916,96813.0,96812.0,0.38075979]
[1740264366139,0.08319916,96813.0,96812.0,0.40182513]
[1740264368442,0.08319916,96813.0,96812.0,0.29282513]
[1740264368964,0.08319916,96813.0,96812.0,0.40182513]
[1740264369120,0.08319916,96813.0,96812.0,0.29282513]
[1740264369808,0.08319916,96813.0,96812.0,0.32506684]
[1740264370019,0.08319916,96813.0,96802.0,0.01454085]
[1740264370196,0.08319916,96813.0,96812.0,0.16475071]
[1740264372791,0.08319916,96813.0,96812.0,0.16675071]
[1740264373039,0.08319916,96813.0,96812.0,0.16875071]
[1740264379111,0.08319916,96813.0,96812.0,0.18902561]
[1740264391924,0.08319916,96813.0,96812.0,0.03408661]
[1740264392516,0.0816047,96813.0,96812.0,0.03408661]
[1740264396797,0.0816047,96813.0,96812.0,0.03578681]
[1740264398697,0.0816047,96813.0,96812.0,0.19072581]
[1740264415132,0.00089916,96813.0,96812.0,0.19072581]
[1740264418728,0.07589916,96813.0,96812.0,0.19072581]
[1740264431821,0.00089916,96813.0,96812.0,0.19072581]
[1740264454160,0.07989916,96813.0,96812.0,0.19072581]
[1740264454366,0.07989916,96813.0,96812.0,0.03578681]
[1740264455112,0.07989916,96813.0,96812.0,0.03378681]
[1740264455539,0.07989916,96813.0,96812.0,0.03478681]
[1740264456383,0.07989916,96813.0,96812.0,0.03278681]
[1740264456760,0.07989916,96813.0,96812.0,0.03478681]
[1740264459339,0.12659916,96813.0,96812.0,0.01451191]
[1740264459478,0.12659916,96813.0,96812.0,0.0047002]
[1740264460075,0.12659916,96813.0,96812.0,0.0027002]
[1740264460691,0.12659916,96813.0,96812.0,0.0017002]
[1740264466317,0.12759916,96813.0,96812.0,0.0017002]
[1740264467020,0.12859916,96813.0,96812.0,0.0017002]
[1740264475111,0.38618185,96813.0,96812.0,0.0017002]
[1740264476016,0.38518185,96813.0,96812.0,0.0017002]
[1740264476374,0.39218185,96813.0,96812.0,0.0027002]
[1740264476609,0.39118185,96813.0,96812.0,0.0027002]
[1740264476780,0.38718185,96813.0,96812.0,0.0017002]
[1740264477159,0.39118185,96813.0,96812.0,0.0017002]
[1740264479065,0.72088185,96813.0,96812.0,0.0017002]
[1740264485044,0.89088185,96813.0,96812.0,0.0017002]
[1740264501064,0.88388185,96813.0,96812.0,0.0017002]
[1740264501467,0.88888185,96813.0,96812.0,0.0017002]
[1740264502042,0.89588185,96813.0,96812.0,0.0027002]
[1740264505433,0.87588185,96813.0,96812.0,0.0027002]
[1740264505648,0.82918185,96813.0,96812.0,0.0027002]
[1740264506059,0.44524485,96813.0,96812.0,0.0027002]
[1740264506573,0.44524485,96813.0,96812.0,0.01302924]
[1740264506784,0.44524485,96813.0,96812.0,0.0027002]
[1740264506979,0.34259916,96813.0,96812.0,0.01331014]
[1740264507182,0.33759916,96813.0,96812.0,0.01231014]
[1740264507392,0.00089916,96813.0,96812.0,0.10249638]
[1740264507599,0.00989916,96813.0,96812.0,0.10349638]
[1740264507743,0.00989916,96813.0,96812.0,0.25843538]
[1740264508166,0.00389916,96813.0,96812.0,0.10249638]
[1740264508346,0.00789916,96813.0,96812.0,0.10249638]
[1740264508575,0.00489916,96813.0,96812.0,0.10249638]
[1740264508770,0.00089916,96813.0,96812.0,0.10249638]
[1740264508971,0.00389916,96813.0,96812.0,0.10249638]
[1740264509201,0.00789916,96813.0,96812.0,0.10249638]
[1740264511804,0.00789916,96813.0,96812.0,0.02349638]
[1740264512015,0.00789916,96813.0,96812.0,0.01231014]
[1740264512190,0.00789916,96813.0,96812.0,0.02349638]
[1740264514641,0.00789916,96813.0,96812.0,0.17843538]
[1740264514839,0.00789916,96813.0,96812.0,0.02349638]
[1740264515349,0.00789916,96813.0,96812.0,0.17843538]
[1740264516523,0.00789916,96813.0,96812.0,0.02349638]
[1740264517099,0.00789916,96813.0,96812.0,0.17843538]
[1740264517530,0.00789916,96813.0,96812.0,0.02349638]
[1740264520578,0.00789916,96813.0,96812.0,0.01231014]
[1740264520775,0.00789916,96813.0,96812.0,0.02349638]
[1740264527833,0.00789916,96813.0,96812.0,0.01231014]
[1740264529055,0.00789916,96813.0,96812.0,0.02349638]
[1740264530007,0.00789916,96813.0,96812.0,0.01231014]
[1740264530204,0.00789916,96813.0,96812.0,0.02349638]
[1740264533625,0.00789916,96813.0,96812.0,0.01231014]
[1740264539592,0.08659916,96813.0,96812.0,0.01231014]
[1740264541943,0.08659916,96813.0,96812.0,0.0017002]
[1740264544514,0.10814858,96813.0,96812.0,0.0017002]
[1740264545126,0.26308558,96813.0,96812.0,0.0017002]
[1740264545325,0.10659916,96813.0,96812.0,0.0017002]
[1740264545528,0.08814859,96813.0,96812.0,0.0017002]
[1740264546969,0.08659916,96813.0,96812.0,0.0017002]
[1740264547759,0.00789916,96813.0,96812.0,0.0017002]
[1740264549016,0.00944859,96813.0,96812.0,0.0017002]
[1740264549339,0.00789916,96813.0,96812.0,0.0017002]
[1740264550121,0.00944859,96813.0,96812.0,0.0017002]
[1740264550544,0.00789916,96813.0,96812.0,0.0017002]
[1740264555771,0.1065486,96813.0,96812.0,0.0017002]
[1740264559421,0.30978561,96813.0,96812.0,0.0017002]
[1740264559566,0.30823616,96813.0,96812.0,0.0017002]
[1740264560302,0.30423616,96813.0,96812.0,0.0017002]
[1740264560743,0.30623616,96813.0,96812.0,0.0017002]
[1740264560909,0.41188185,96813.0,96812.0,0.0017002]
[1740264562237,0.74158185,96813.0,96812.0,0.0017002]
[1740264562806,0.73858185,96813.0,96812.0,0.0017002]
[1740264562955,0.74258185,96813.0,96812.0,0.0017002]
[1740264563370,0.73758185,96813.0,96812.0,0.0017002]
[1740264563775,0.74258185,96813.0,96812.0,0.0017002]
[1740264565666,0.73858185,96813.0,96812.0,0.0017002]
[1740264566099,0.74358185,96813.0,96812.0,0.0017002]
[1740264566939,0.73858185,96813.0,96812.0,0.0017002]